bitfinex/quotes_BTCUSD_20251207
["timestamp","ask_amount","ask_price","bid_price","bid_amount"]
[1765149446376,0.00069089,89881.0,89880.0,0.08234589]
[1765149446597,0.00069089,89881.0,89880.0,0.10941589]
[1765149446941,0.00069089,89881.0,89880.0,0.08234589]
[1765149448100,0.00069089,89881.0,89880.0,0.08534589]
[1765149448305,0.00069089,89881.0,89880.0,0.003]
[1765149448306,0.00129089,89881.0,89880.0,0.003]
[1765149448480,0.24600331,89881.0,89880.0,0.003]
[1765149449504,0.22252386,89878.0,89877.0,0.00011785]
[1765149449709,0.24501985,89878.0,89877.0,0.00011785]
[1765149449906,0.24531985,89878.0,89877.0,0.00011785]
[1765149450202,0.24592064,89878.0,89877.0,0.00011785]
[1765149450414,0.24562064,89878.0,89877.0,0.00011785]
[1765149450610,0.22372465,89878.0,89877.0,0.00011785]
[1765149450778,0.22672465,89878.0,89877.0,0.00011785]
[1765149451366,0.22642465,89878.0,89877.0,0.00011785]
[1765149451982,0.22842465,89878.0,89877.0,0.00011785]
[1765149452581,0.22642465,89878.0,89877.0,0.00011785]
[1765149453024,0.22842465,89878.0,89877.0,0.00011785]
[1765149453609,0.22642465,89878.0,89877.0,0.00011785]
[1765149454032,0.22842465,89878.0,89877.0,0.00011785]
[1765149454609,0.24610465,89878.0,89877.0,0.00011785]
[1765149455254,0.00560079,89878.0,89877.0,0.06970785]
[1765149455468,0.00560079,89878.0,89877.0,0.02718785]
[1765149456018,0.00360079,89878.0,89877.0,0.00011785]
[1765149456441,0.00060079,89878.0,89877.0,0.00011785]
[1765149456897,0.00060079,89878.0,89877.0,0.00311785]
[1765149457042,0.00060079,89878.0,89877.0,0.00011785]
[1765149457447,0.00060079,89878.0,89877.0,0.00211785]
[1765149457648,0.00089079,89878.0,89877.0,0.00211785]
[1765149458051,0.00060079,89878.0,89877.0,0.00211785]
[1765149458371,0.00160079,89878.0,89877.0,0.00211785]
[1765149458754,0.00060079,89878.0,89877.0,0.00211785]
[1765149459154,0.00160079,89878.0,89877.0,0.00211785]
[1765149460976,0.00160079,89878.0,89877.0,0.22464419]
[1765149461111,0.00160079,89878.0,89877.0,0.00211785]
[1765149461705,0.00160079,89878.0,89877.0,0.25115419]
[1765149462111,0.00160079,89878.0,89877.0,0.00211785]
[1765149464267,0.02379678,89878.0,89877.0,0.00211785]
[1765149464859,0.02279678,89878.0,89877.0,0.00211785]
[1765149465256,0.02479678,89878.0,89877.0,0.00211785]
[1765149465669,0.02479678,89878.0,89877.0,0.00011785]
[1765149465890,0.02779678,89878.0,89877.0,0.00011785]
[1765149466541,0.00560079,89878.0,89877.0,0.00011785]
[1765149467729,0.00360079,89878.0,89877.0,0.00011785]
[1765149468501,0.02579678,89878.0,89877.0,0.00011785]
[1765149468720,0.02279678,89878.0,89877.0,0.00011785]
[1765149468873,0.02279678,89878.0,89877.0,0.00111785]
[1765149468874,0.02379678,89878.0,89877.0,0.00111785]
[1765149469078,0.00160079,89878.0,89877.0,0.00111785]
[1765149469256,0.00060079,89878.0,89877.0,0.00011785]
[1765149469833,0.00560079,89878.0,89877.0,0.00011785]
[1765149472140,0.02328079,89878.0,89877.0,0.00011785]
[1765149472941,0.02028079,89878.0,89877.0,0.00011785]
[1765149473263,0.02028079,89878.0,89877.0,0.00111785]
[1765149473477,0.04197389,89910.0,89877.0,0.1275861]
[1765149473673,0.02815692,89922.0,89877.0,0.1275861]
[1765149473674,0.01112099,89920.0,89908.0,0.01112248]
[1765149473875,0.2224224,89919.0,89912.0,0.01112198]
[1765149474044,0.01729,89909.0,89906.0,0.04102897]
[1765149474241,0.22243749,89913.0,89908.0,0.01112248]
[1765149474469,0.22243229,89915.0,89910.0,0.01112223]
[1765149474688,0.22243229,89915.0,89909.0,0.01112235]
[1765149474689,0.01112173,89914.0,89909.0,0.23356824]
[1765149474874,0.01112173,89914.0,89910.0,0.01112223]
[1765149475077,0.01729,89910.0,89908.0,0.01112248]
[1765149475362,0.01729,89910.0,89909.0,0.22244714]
[1765149475595,0.01112124,89918.0,89913.0,0.01112186]
[1765149475798,0.001,89915.0,89914.0,0.01112173]
[1765149476020,0.00011779,89918.0,89915.0,0.2335539]
[1765149477929,0.00011779,89918.0,89917.0,0.22242734]
[1765149478340,0.01840779,89918.0,89917.0,0.22242734]
[1765149478546,0.02040779,89918.0,89917.0,0.22242734]
[1765149478745,0.01740779,89918.0,89917.0,0.22242734]
[1765149479135,0.02040779,89918.0,89917.0,0.22242734]
[1765149479330,0.02040779,89918.0,89915.0,0.01112161]
[1765149479555,0.00311779,89918.0,89916.0,0.22242982]
[1765149480295,0.00311779,89918.0,89909.0,0.22244646]
[1765149480508,0.01112235,89909.0,89906.0,0.01112272]
[1765149480736,0.01729,89903.0,89895.0,0.22248178]
[1765149480934,0.00099084,89911.0,89894.0,0.23360846]
[1765149480935,0.01729,89895.0,89894.0,0.23360846]
[1765149481084,0.01729,89895.0,89894.0,0.01112421]
[1765149481284,0.01729,89895.0,89894.0,0.23360846]
[1765149481490,0.01729,89895.0,89892.0,0.23361366]
[1765149481863,0.01112322,89902.0,89899.0,0.01112359]
[1765149482116,0.23358905,89902.0,89897.0,0.01112384]
[1765149482321,0.23358794,89902.0,89898.0,0.01112371]
[1765149482495,0.02841371,89898.0,89894.0,0.02012421]
[1765149482723,0.01729,89896.0,89894.0,0.01312421]
[1765149482933,0.22246941,89900.0,89899.0,0.004]
[1765149483326,0.23975941,89900.0,89899.0,0.004]
[1765149483734,0.23975941,89900.0,89899.0,0.005]
[1765149483942,0.01729,89900.0,89899.0,0.005]
[1765149484095,0.01729,89900.0,89899.0,0.001]
[1765149484299,0.01729,89900.0,89897.0,0.01112384]
[1765149484527,0.02841347,89900.0,89898.0,0.002]
[1765149484883,0.01112396,89896.0,89891.0,0.01112458]
[1765149485124,0.01112396,89896.0,89892.0,0.23361342]
[1765149485264,0.01112396,89896.0,89892.0,0.01112446]
[1765149485486,0.01112396,89896.0,89886.0,0.22250242]
[1765149485487,0.01112507,89887.0,89883.0,0.01112557]
[1765149485691,0.01112507,89887.0,89881.0,0.01112582]
[1765149485692,0.01559,89884.0,89881.0,0.01112582]
[1765149486446,0.01112495,89888.0,89883.0,0.01112557]
[1765149486571,0.01112495,89888.0,89884.0,0.23363367]
[1765149486779,0.01112495,89888.0,89884.0,0.01112545]
[1765149487570,0.23362412,89888.0,89884.0,0.01112545]
[1765149487793,0.23362412,89888.0,89884.0,0.01212545]
[1765149488212,0.01112495,89888.0,89884.0,0.23463397]
[1765149488440,0.01112495,89888.0,89884.0,0.001]
[1765149488441,0.23809653,89885.0,89884.0,0.001]
[1765149488880,0.01112495,89888.0,89884.0,0.01212545]
[1765149489280,0.01112495,89888.0,89884.0,0.001]
[1765149489281,0.22250406,89886.0,89884.0,0.001]
[1765149489917,0.01112507,89887.0,89884.0,0.001]
[1765149490322,0.01112507,89887.0,89867.0,0.02985447]
[1765149490323,0.01112718,89870.0,89867.0,0.02985447]
[1765149490632,0.01659,89885.0,89857.0,0.05980661]
[1765149490633,0.23368385,89865.0,89861.0,0.01112829]
[1765149490886,0.0111278,89865.0,89862.0,0.01112817]
[1765149491112,0.0111278,89865.0,89861.0,0.23408653]
[1765149491310,0.01112792,89864.0,89861.0,0.00039317]
[1765149491715,0.222561,89863.0,89861.0,0.00039317]
[1765149491882,0.01112767,89866.0,89863.0,0.02586]
[1765149492105,0.01112693,89872.0,89863.0,0.03860092]
[1765149492305,0.01112718,89870.0,89867.0,0.01112755]
[1765149492668,0.01112705,89871.0,89867.0,0.01112755]
[1765149492880,0.02989472,89913.0,89861.0,0.00239317]
[1765149492881,0.01112569,89882.0,89877.0,0.01112631]
[1765149493075,0.23833531,89886.0,89877.0,0.01112631]
[1765149493076,0.01112545,89884.0,89879.0,0.01112606]
[1765149493275,0.01112545,89884.0,89880.0,0.22251891]
[1765149493480,0.23833531,89886.0,89881.0,0.01112582]
[1765149493481,0.01583027,89886.0,89881.0,0.01112582]
[1765149493678,0.01583027,89886.0,89881.0,0.03065582]
[1765149493887,0.01112532,89885.0,89881.0,0.03065582]
[1765149494092,0.01212545,89884.0,89880.0,0.01112594]
[1765149494397,0.01112681,89873.0,89870.0,0.00161287]
[1765149494602,0.02578705,89871.0,89863.0,0.01112805]
[1765149494824,0.22252329,89879.0,89862.0,0.01112817]
[1765149494825,0.23368137,89866.0,89862.0,0.01112817]
[1765149495027,0.01112681,89873.0,89868.0,0.01112743]
[1765149495362,0.01112569,89882.0,89878.0,0.04539]
[1765149495489,0.01112532,89885.0,89880.0,0.22251891]
[1765149495693,0.01112532,89885.0,89882.0,0.01112569]
[1765149495900,0.01112532,89885.0,89876.0,0.22252881]
[1765149495901,0.01112557,89883.0,89876.0,0.22252881]
[1765149496105,0.22251675,89881.0,89876.0,0.22252881]
[1765149496329,0.02695547,89886.0,89882.0,0.01112569]
[1765149496548,0.01112545,89884.0,89879.0,0.01112606]
[1765149496706,0.01112594,89880.0,89875.0,0.01112656]
[1765149496907,0.23364726,89880.0,89875.0,0.01112656]
[1765149497101,0.23364726,89880.0,89871.0,0.01953]
[1765149497102,0.01112594,89880.0,89871.0,0.01953]
[1765149497323,0.01466,89872.0,89869.0,0.0111273]
[1765149497560,0.01466,89872.0,89868.0,0.00161287]
[1765149497561,0.24832637,89872.0,89868.0,0.00161287]
[1765149497763,0.01466,89869.0,89868.0,0.00161287]
[1765149497963,0.01112705,89871.0,89868.0,0.00161287]
[1765149499006,0.01112619,89878.0,89874.0,0.01112668]
[1765149499209,0.01112619,89878.0,89872.0,0.01112693]
[1765149499210,0.2336525,89878.0,89872.0,0.01112693]
[1765149499413,0.2336525,89878.0,89873.0,0.22253624]
[1765149499554,0.01112606,89879.0,89875.0,0.01112656]
[1765149499977,0.23365094,89878.0,89873.0,0.23527507]
[1765149500316,0.01112693,89872.0,89868.0,0.01112743]
[1765149500829,0.01112792,89864.0,89858.0,0.25242768]
[1765149501034,0.23368759,89864.0,89860.0,0.01112842]
[1765149501258,0.23368759,89864.0,89858.0,0.01112866]
[1765149501259,0.01466,89862.0,89858.0,0.01112866]
[1765149501432,0.01466,89862.0,89851.0,0.01112953]
[1765149501640,0.01466,89862.0,89855.0,0.01112904]
[1765149501778,0.01466,89862.0,89850.0,0.1473]
[1765149501980,0.02932,89862.0,89849.0,0.01112978]
[1765149502195,0.02932,89862.0,89847.0,0.01113003]
[1765149502395,0.05151599,89862.0,89847.0,0.01113003]
[1765149502608,0.01466,89862.0,89853.0,0.01112928]
[1765149502848,0.01466,89862.0,89861.0,0.00739317]
[1765149503050,0.01466,89862.0,89861.0,0.00039317]
[1765149503251,0.23368759,89864.0,89861.0,0.00239317]
[1765149503454,0.23368759,89864.0,89861.0,0.00639317]
[1765149503653,0.01466,89862.0,89861.0,0.00439317]
[1765149504032,0.01466,89862.0,89861.0,0.00539317]
[1765149504241,0.01466,89862.0,89861.0,0.00139317]
[1765149504464,0.01466,89862.0,89861.0,0.00439317]
[1765149505127,0.23368759,89864.0,89861.0,0.00439317]
[1765149505537,0.23722348,89862.0,89861.0,0.00439317]
[1765149505874,0.23722348,89862.0,89861.0,0.00139317]
[1765149506171,0.25188348,89862.0,89861.0,0.00039317]
[1765149506332,0.23722348,89862.0,89861.0,0.00139317]
[1765149506528,0.23722348,89862.0,89861.0,0.00439317]
[1765149506859,0.23722348,89862.0,89861.0,0.00039317]
[1765149507054,0.23722348,89862.0,89861.0,0.00139317]
[1765149507272,0.23722348,89862.0,89861.0,0.00539317]
[1765149507453,0.25188348,89862.0,89861.0,0.00539317]
[1765149507642,0.27407947,89862.0,89861.0,0.00539317]
[1765149511023,0.25188348,89862.0,89861.0,0.00539317]
[1765149511261,0.27407947,89862.0,89861.0,0.00539317]
[1765149512639,0.25941947,89862.0,89861.0,0.00539317]
[1765149512836,0.22256348,89862.0,89861.0,0.00539317]
[1765149514682,0.25188348,89862.0,89861.0,0.00539317]
[1765149514827,0.59707947,89862.0,89861.0,0.00539317]
[1765149515241,1.46865147,89862.0,89861.0,0.00539317]
[1765149515444,1.47904787,89862.0,89861.0,0.00139317]
[1765149515680,1.47904787,89862.0,89861.0,0.00039317]
[1765149516008,1.47904787,89862.0,89861.0,0.00139317]
[1765149516886,0.01113176,89833.0,89829.0,0.01113226]
[1765149517085,0.01466,89830.0,89829.0,0.01286298]
[1765149518710,0.23373721,89845.0,89840.0,0.01113089]
[1765149518911,0.333,89862.0,89844.0,0.2484656]
[1765149518912,0.01112953,89851.0,89844.0,0.2484656]
[1765149519083,0.01466,89865.0,89844.0,0.2484656]
[1765149519084,0.01112904,89855.0,89851.0,0.01112953]
[1765149519944,0.23371017,89855.0,89851.0,0.01112953]
[1765149520159,0.01112916,89854.0,89851.0,0.01112953]
[1765149520862,0.01112941,89852.0,89849.0,0.01112978]
[1765149520990,0.0111299,89848.0,89844.0,0.00161287]
[1765149521191,0.23726559,89845.0,89844.0,0.00161287]
[1765149521452,0.23726559,89845.0,89836.0,0.02985447]
[1765149521453,0.01113102,89839.0,89834.0,0.23376282]
[1765149521654,0.01113102,89839.0,89835.0,0.01113151]
[1765149521655,0.02579102,89839.0,89835.0,0.01113151]
[1765149521863,0.02579102,89839.0,89836.0,0.01113139]
[1765149522002,0.01113114,89838.0,89834.0,0.01274451]
[1765149522437,0.01113127,89837.0,89834.0,0.01274451]
[1765149522642,0.01113127,89837.0,89834.0,0.01674451]
[1765149522851,0.01113127,89837.0,89836.0,0.001]
[1765149523051,0.01113102,89839.0,89836.0,0.01213139]
[1765149523270,0.01113089,89840.0,89836.0,0.01213139]
[1765149524475,0.01113089,89840.0,89836.0,0.23375927]
[1765149524883,0.01113089,89840.0,89836.0,0.01113139]
[1765149525371,0.01113102,89839.0,89836.0,0.01313139]
[1765149526235,0.01113089,89840.0,89837.0,0.01113127]
[1765149526375,0.2337517,89839.0,89834.0,0.23537716]
[1765149526578,0.2337517,89839.0,89836.0,0.003]
[1765149527390,0.01113089,89840.0,89836.0,0.003]
[1765149527391,0.0111304,89844.0,89838.0,0.01113114]
[1765149527592,0.01113027,89845.0,89840.0,0.01113089]
[1765149527796,0.22261063,89843.0,89840.0,0.01113089]
[1765149528002,0.0111304,89844.0,89840.0,0.01113089]
[1765149528830,0.01113052,89843.0,89840.0,0.01113089]
[1765149529207,0.0111304,89844.0,89841.0,0.01113077]
[1765149531920,0.23373586,89845.0,89841.0,0.01113077]
[1765149532120,0.23373586,89845.0,89841.0,0.01313077]
[1765149532928,0.23373586,89845.0,89841.0,0.01113077]
[1765149533124,0.23373586,89845.0,89841.0,0.01313077]
[1765149533327,0.23372447,89850.0,89844.0,0.02516]
[1765149533568,0.01112842,89860.0,89857.0,0.02516]
[1765149533773,0.01112767,89866.0,89862.0,0.01112817]
[1765149534004,0.01112767,89866.0,89863.0,0.01112805]
[1765149534202,0.01112743,89868.0,89865.0,0.0551378]
[1765149534437,0.01174,89874.0,89873.0,0.22253624]
[1765149534734,0.01174,89874.0,89873.0,0.28839911]
[1765149534735,0.00010047,89874.0,89873.0,0.28839911]
[1765149535905,0.00010047,89874.0,89873.0,0.29539911]
[1765149536372,0.00010047,89874.0,89873.0,0.28939911]
[1765149537159,0.00010047,89874.0,89873.0,0.22514911]
[1765149537575,0.00010047,89874.0,89873.0,0.22914911]
[1765149537779,0.00010047,89874.0,89873.0,0.28532911]
[1765149538159,0.00010047,89874.0,89873.0,0.28932911]
[1765149538364,0.00010047,89874.0,89873.0,0.28532911]
[1765149538584,0.00010047,89874.0,89873.0,0.28732911]
[1765149538780,0.00010047,89874.0,89873.0,0.28932911]
[1765149539008,0.00010047,89874.0,89873.0,0.28732911]
[1765149539543,0.00010047,89874.0,89873.0,0.06879287]
[1765149539727,0.00010047,89874.0,89873.0,0.29132911]
[1765149540877,0.00010047,89874.0,89873.0,0.00761287]
[1765149541129,0.00010047,89874.0,89873.0,0.03305287]
[1765149541306,0.00010047,89874.0,89873.0,0.00761287]
[1765149541479,0.22263423,89874.0,89873.0,0.00761287]
[1765149541694,0.00010047,89874.0,89873.0,0.00761287]
[1765149541876,0.00010047,89874.0,89873.0,0.23014911]
[1765149542076,0.00010047,89874.0,89873.0,0.28532911]
[1765149542321,0.00010047,89874.0,89873.0,0.28632911]
[1765149542530,0.00010047,89874.0,89873.0,0.28732911]
[1765149542957,0.00010047,89874.0,89873.0,0.28632911]
[1765149543487,0.00010047,89874.0,89873.0,0.37105608]
[1765149543725,0.00010047,89874.0,89873.0,0.3478521]
[1765149543902,0.00010047,89874.0,89873.0,0.72691055]
[1765149544039,0.00010047,89874.0,89873.0,0.69905608]
[1765149544249,0.00010047,89874.0,89873.0,0.80476114]
[1765149544456,0.00010047,89874.0,89873.0,0.6728521]
[1765149544653,0.00010047,89874.0,89873.0,0.6958521]
[1765149544859,0.00110047,89874.0,89873.0,0.7058521]
[1765149545068,0.00110047,89874.0,89873.0,0.72805608]
[1765149545483,0.00110047,89874.0,89873.0,0.03661287]
[1765149546567,0.00110047,89874.0,89873.0,0.01161287]
[1765149546898,0.01151047,89874.0,89873.0,0.01]
[1765149547076,0.01051047,89874.0,89873.0,0.002]
[1765149547281,0.01112705,89871.0,89868.0,0.01112743]
[1765149547781,0.23366305,89873.0,89868.0,0.23367596]
[1765149547934,0.23366305,89873.0,89869.0,0.0111273]
[1765149548357,0.00010047,89874.0,89871.0,0.01112705]
[1765149548536,0.01122715,89874.0,89870.0,0.01112718]
[1765149549708,0.23376333,89874.0,89870.0,0.01112718]
[1765149549984,0.01112681,89873.0,89870.0,0.01112718]
[1765149550555,0.01112681,89873.0,89870.0,0.01312718]
[1765149550981,0.01112693,89872.0,89868.0,0.01112743]
[1765149551207,0.01112705,89871.0,89870.0,0.001]
[1765149551348,0.01112693,89872.0,89870.0,0.002]
[1765149551690,0.00894,89871.0,89870.0,0.002]
[1765149551865,0.00894,89871.0,89870.0,0.001]
[1765149552068,0.00894,89871.0,89866.0,0.01112767]
[1765149552069,0.0111273,89869.0,89868.0,0.001]
[1765149552620,0.0200673,89869.0,89868.0,0.001]
[1765149553192,0.0200673,89869.0,89851.0,0.22259057]
[1765149553193,0.01112953,89851.0,89848.0,0.02985447]
[1765149553389,0.01112941,89852.0,89848.0,0.02985447]
[1765149553390,0.01112941,89852.0,89848.0,0.0111299]
[1765149553587,0.01112941,89852.0,89840.0,0.2281799]
[1765149553588,0.02006978,89849.0,89840.0,0.4507964]
[1765149553818,0.00894,89848.0,89844.0,0.0111304]
[1765149553988,0.00894,89848.0,89846.0,0.22260196]
[1765149554606,0.00894,89848.0,89845.0,0.01113027]
[1765149555139,0.001,89848.0,89845.0,0.01113027]
[1765149555345,0.01112966,89850.0,89846.0,0.23373318]
[1765149555556,0.01112966,89850.0,89846.0,0.01113015]
[1765149555758,0.01113015,89846.0,89839.0,0.01113102]
[1765149555962,0.01112978,89849.0,89844.0,0.0111304]
[1765149556171,0.23372813,89848.0,89844.0,0.0111304]
[1765149556386,0.01113003,89847.0,89843.0,0.01113052]
[1765149556632,0.22263877,89832.0,89827.0,0.02985447]
[1765149556837,0.22263877,89832.0,89822.0,0.05083206]
[1765149556838,0.01113263,89826.0,89822.0,0.01113312]
[1765149557041,0.00894,89828.0,89827.0,0.00011785]
[1765149557253,0.01113213,89830.0,89827.0,0.00011785]
[1765149557461,0.00894,89833.0,89830.0,0.01113213]
[1765149557882,0.00894,89833.0,89831.0,0.22264029]
[1765149558085,0.00894,89833.0,89830.0,0.01113213]
[1765149558466,0.02007176,89833.0,89829.0,0.01113226]
[1765149559274,0.01113201,89831.0,89828.0,0.01113238]
[1765149559474,0.01113201,89831.0,89827.0,0.00173072]
[1765149559876,0.23377489,89830.0,89827.0,0.00173072]
[1765149560088,0.01113213,89830.0,89827.0,0.00173072]
[1765149560309,0.01113201,89831.0,89827.0,0.00173072]
[1765149560710,0.01113201,89831.0,89827.0,0.00273072]
[1765149560881,0.01113189,89832.0,89829.0,0.01113226]
[1765149561231,0.23376999,89832.0,89828.0,0.01113238]
[1765149561444,0.22264276,89830.0,89827.0,0.00273072]
[1765149561681,0.22264772,89828.0,89827.0,0.00273072]
[1765149561873,0.22262963,89836.0,89831.0,0.02484]
[1765149562103,0.23376453,89834.0,89832.0,0.02484]
[1765149563449,0.22262867,89836.0,89833.0,0.06097]
[1765149563644,0.22262867,89836.0,89834.0,0.02484]
[1765149563902,0.01113102,89839.0,89834.0,0.06097]
[1765149564119,0.23375408,89838.0,89834.0,0.06097]
[1765149564526,0.23375408,89838.0,89834.0,0.02484]
[1765149564945,0.01113127,89837.0,89834.0,0.02484]
[1765149565537,0.01113102,89839.0,89834.0,0.01274451]
[1765149565746,0.01113102,89839.0,89838.0,0.01967]
[1765149566172,0.01113089,89840.0,89838.0,0.01967]
[1765149567010,0.22262046,89839.0,89838.0,0.02067]
[1765149567216,0.01113065,89842.0,89839.0,0.03597102]
[1765149567502,0.01113065,89842.0,89840.0,0.02484]
[1765149567869,0.0111304,89844.0,89840.0,0.02645287]
[1765149568066,0.0111304,89844.0,89841.0,0.02484]
[1765149568494,0.23374107,89843.0,89840.0,0.00161287]
[1765149568696,0.00894,89841.0,89840.0,0.00161287]
[1765149569117,0.22261798,89840.0,89838.0,0.001]
[1765149569293,0.22261798,89840.0,89839.0,0.001]
[1765149569689,0.22261798,89840.0,89830.0,0.2]
[1765149569690,0.01113176,89833.0,89830.0,0.2]
[1765149569898,0.00894,89831.0,89830.0,0.2]
[1765149570503,0.23376934,89833.0,89830.0,0.2]
[1765149570723,0.00894,89831.0,89830.0,0.2]
[1765149571443,0.01788,89831.0,89830.0,0.2]
[1765149572089,0.01788,89831.0,89830.0,0.201]
[1765149573380,0.00894,89831.0,89830.0,0.201]
[1765149573782,0.22264027,89832.0,89830.0,0.201]
[1765149573909,0.00894,89831.0,89830.0,0.201]
[1765149574784,0.00894,89831.0,89830.0,0.2]
[1765149576039,0.00894,89831.0,89830.0,0.201]
[1765149582009,0.22264027,89832.0,89830.0,0.201]
[1765149582557,0.00631,89831.0,89830.0,0.201]
[1765149582751,0.00631,89831.0,89830.0,0.2]
[1765149583066,0.22264027,89832.0,89830.0,0.2]
[1765149583287,0.22364027,89832.0,89830.0,0.2]
[1765149583633,0.23376934,89833.0,89830.0,0.2]
[1765149583844,0.01113027,89845.0,89832.0,0.02452287]
[1765149584051,0.02881015,89846.0,89843.0,0.01113052]
[1765149584231,0.01113027,89845.0,89841.0,0.01113077]
[1765149584376,0.01113027,89845.0,89837.0,0.01113127]
[1765149584377,0.01113065,89842.0,89837.0,0.01113127]
[1765149584780,0.01113089,89840.0,89834.0,0.01113164]
[1765149585123,0.01113089,89840.0,89835.0,0.01113151]
[1765149585298,0.23375124,89840.0,89835.0,0.01113151]
[1765149585686,0.23375124,89840.0,89837.0,0.001]
[1765149585889,0.22262294,89838.0,89837.0,0.001]
[1765149586106,0.01113102,89839.0,89837.0,0.001]
[1765149586503,0.01113052,89843.0,89838.0,0.05865]
[1765149586710,0.01768,89846.0,89842.0,0.02291]
[1765149586926,0.01768,89846.0,89845.0,0.02291]
[1765149587376,0.01768,89846.0,89845.0,0.05865]
[1765149588191,0.01768,89846.0,89845.0,0.02291]
[1765149589137,0.01868,89846.0,89845.0,0.02291]
[1765149589721,0.01768,89846.0,89845.0,0.02291]
[1765149590150,0.01768,89846.0,89845.0,0.02491]
[1765149590956,0.01768,89846.0,89845.0,0.02591]
[1765149591192,0.24028312,89846.0,89845.0,0.003]
[1765149591804,0.01768,89846.0,89845.0,0.003]
[1765149594894,0.24028312,89846.0,89845.0,0.003]
[1765149595132,0.01768,89846.0,89845.0,0.003]
[1765149597399,0.01768,89846.0,89845.0,0.22560559]
[1765149597785,0.01768,89846.0,89845.0,0.28685846]
[1765149598290,0.01112941,89852.0,89848.0,0.23372743]
[1765149598426,0.01112928,89853.0,89850.0,0.23372231]
[1765149598624,0.01112928,89853.0,89850.0,0.23533518]
[1765149599444,0.02880842,89860.0,89854.0,0.01112916]
[1765149599686,0.44525235,89886.0,89867.0,0.01112755]
[1765149599687,0.22253853,89873.0,89867.0,0.01112755]
[1765149599830,0.01112705,89871.0,89868.0,0.01112743]
[1765149600158,0.01112718,89870.0,89867.0,0.04921042]
[1765149600361,0.01112718,89870.0,89867.0,0.03808287]
[1765149600568,0.00010047,89870.0,89869.0,0.02317]
[1765149600948,0.00010047,89870.0,89869.0,0.02478287]
[1765149601150,0.00010047,89870.0,89869.0,0.00161287]
[1765149601368,0.00515047,89870.0,89869.0,0.00161287]
[1765149601610,0.22769414,89870.0,89869.0,0.00161287]
[1765149601964,0.22769414,89870.0,89869.0,0.00361287]
[1765149601965,0.00010047,89870.0,89869.0,0.00361287]
[1765149602331,0.22769414,89870.0,89869.0,0.00161287]
[1765149602443,0.22264414,89870.0,89869.0,0.00161287]
[1765149603237,0.00010047,89870.0,89869.0,0.00161287]
[1765149603438,0.00010047,89870.0,89869.0,0.28379902]
[1765149603733,0.00010047,89870.0,89869.0,0.3388856]
[1765149603938,0.00010047,89870.0,89869.0,0.05669945]
[1765149604503,0.00010047,89870.0,89869.0,0.05769945]
[1765149604711,0.00010047,89870.0,89869.0,0.05969945]
[1765149605110,0.00010047,89870.0,89869.0,0.05769945]
[1765149605316,0.22769414,89870.0,89869.0,0.001]
[1765149605757,0.0111273,89869.0,89866.0,0.01112767]
[1765149606331,0.00010047,89870.0,89869.0,0.22254615]
[1765149606540,0.00010047,89870.0,89869.0,0.24571615]
[1765149606758,0.00010047,89870.0,89869.0,0.36283553]
[1765149607137,0.00010047,89870.0,89869.0,0.53233951]
[1765149607557,0.00310047,89870.0,89869.0,0.53333951]
[1765149607717,0.00310047,89870.0,89869.0,0.38603951]
[1765149607718,0.00010047,89870.0,89869.0,0.38603951]
[1765149608116,0.00010047,89870.0,89869.0,0.38903951]
[1765149608706,0.00010047,89870.0,89869.0,0.36683553]
[1765149609126,0.00010047,89870.0,89869.0,0.36583553]
[1765149609339,0.00010047,89870.0,89869.0,0.41490968]
[1765149609545,0.00010047,89870.0,89869.0,0.41690968]
[1765149609914,0.00010047,89870.0,89869.0,0.80243267]
[1765149610193,4.7e-07,89870.0,89869.0,0.7705625]
[1765149610347,0.00100047,89870.0,89869.0,0.7805625]
[1765149610547,0.00100047,89870.0,89869.0,0.8085625]
[1765149610747,0.00100047,89870.0,89869.0,0.7985625]
[1765149610748,4.7e-07,89870.0,89869.0,0.7985625]
[1765149610947,4.7e-07,89870.0,89869.0,0.74835852]
[1765149611151,0.00100047,89870.0,89869.0,0.78635852]
[1765149611401,0.00100047,89870.0,89869.0,0.72383553]
[1765149611571,0.00100047,89870.0,89869.0,0.43068337]
[1765149611776,0.00100047,89870.0,89869.0,0.40083553]
[1765149612017,0.00100047,89870.0,89869.0,0.37383553]
[1765149612221,4.7e-07,89870.0,89869.0,0.36283553]
[1765149612388,4.7e-07,89870.0,89869.0,0.38483553]
[1765149613123,0.00100047,89870.0,89869.0,0.39483553]
[1765149613641,4.7e-07,89870.0,89869.0,0.24732902]
[1765149613841,4.7e-07,89870.0,89869.0,0.25232902]
[1765149613969,4.7e-07,89870.0,89869.0,0.28617902]
[1765149615130,4.7e-07,89870.0,89869.0,0.308383]
[1765149615359,4.7e-07,89870.0,89869.0,0.40075383]
[1765149615495,4.7e-07,89870.0,89869.0,0.37090599]
[1765149615699,4.7e-07,89870.0,89869.0,0.83345563]
[1765149616217,4.7e-07,89870.0,89869.0,0.80361105]
[1765149616420,4.7e-07,89870.0,89869.0,0.83345433]
[1765149616620,4.7e-07,89870.0,89869.0,0.80361105]
[1765149618339,4.7e-07,89870.0,89869.0,0.84340625]
[1765149618549,4.7e-07,89870.0,89869.0,0.82129105]
[1765149619165,4.7e-07,89870.0,89869.0,0.81829105]
[1765149619579,4.7e-07,89870.0,89869.0,0.81629105]
[1765149619965,0.00100047,89870.0,89869.0,0.85229105]
[1765149620662,0.00100047,89870.0,89869.0,0.99959105]
[1765149621514,0.00100047,89870.0,89869.0,0.95970707]
[1765149621896,0.00100047,89870.0,89869.0,0.98191105]
[1765149624579,0.00100047,89870.0,89869.0,1.04171766]
[1765149624884,0.00024027,89886.0,89885.0,0.54550653]
[1765149625154,0.00063306,89886.0,89885.0,0.7183994]
[1765149625312,0.00063306,89886.0,89885.0,0.84463851]
[1765149625514,0.24010987,89916.0,89913.0,0.23355717]
[1765149625515,0.01768,89916.0,89913.0,0.23355717]
[1765149625716,0.01112099,89920.0,89915.0,0.05198161]
[1765149625903,0.01112124,89918.0,89915.0,0.04086]
[1765149626111,0.01112124,89918.0,89915.0,0.01688]
[1765149626364,0.23360208,89920.0,89915.0,0.01688]
[1765149626365,6.117e-05,89920.0,89917.0,0.03510136]
[1765149626566,0.01118216,89920.0,89915.0,0.01112161]
[1765149626728,0.01118216,89920.0,89913.0,0.01112186]
[1765149626729,0.01112136,89917.0,89913.0,0.01112186]
[1765149626949,0.01112198,89912.0,89909.0,0.01112235]
[1765149627147,0.01112186,89913.0,89910.0,0.01112223]
[1765149628646,0.01212186,89913.0,89910.0,0.01112223]
[1765149628843,0.01212186,89913.0,89909.0,0.01112235]
[1765149629181,0.01212186,89913.0,89909.0,0.03376277]
[1765149629365,0.001,89913.0,89910.0,0.23356689]
[1765149630411,0.01112161,89915.0,89912.0,0.01112198]
[1765149630650,0.01112124,89918.0,89913.0,0.01112186]
[1765149631061,0.01112136,89917.0,89913.0,0.01112186]
[1765149631263,0.00084064,89914.0,89913.0,0.01112186]